Workbook

Sheet Cover
B6: Management information
B7: Policy area: | C7: Independent schools and maintained schools and academies.
B8: Theme: | C8: Education, children's services and skills
B9: Published on: | C9: 2015-11-20
B10: Coverage: | C10: England
B11: Period covered: | C11: Parent View submissions received between 1 September 2014 and 31 August 2015.
B12: Status: | C12: Management Information
B13: Statistician: | C13: Paul Moore
B14: Public enquiries: | C14: enquiries@ofsted.gov.uk
B15: Press enquiries: | C15: pressenquiries@ofsted.gov.uk
B16: Link to official statistics release web page: | C16: https://www.gov.uk/government/collections/maintained-schools-and-academies-inspections-and-outcomes-official-statistics
B19: © Crown copyright 2015
B21: You may use and re-use this information (not including logos) free of charge in any format or medium,
B22: under the terms of the Open Government Licence.
B23: To view this licence, visit:
B24: http://www.nationalarchives.gov.uk/doc/open-government-licence/
B25: Or write to the Information Policy Team, The National Archives, Kew, London, TW9 4DU
B26: Or email:
B27: psi@nationalarchives.gsi.gov.uk

Sheet Contents and Guidance
B2: Management Information: Parent View 2014/15
B3: Contents and Guidance
B5: What data does this release cover?
B7: This data release covers the submissions received to Parent View in the 2014/15 academic year (1 September 2014 – 31 August 2015) for:
B8: √ maintained schools and academies who were open throughout the academic year
B9: √ independent schools who were open and eligible for inspection by Ofsted throughout the academic year
B11: It does not include submissions received for:
B12: x schools who opened or closed between 1 September 2014 and 31 August 2015
B13: x maintained schools which converted to academy status during this period
B14: x independent schools who changed inspectorate during this period
B16: What data is contained in this spreadsheet?
B18: Chart 1: Parent View responses received for independent schools/maintained schools and academies in England between 1 September 2014 and 31 August 2015
B20: This sheet details the number of submissions received for each question by response (Strongly agree, Agree, Disagree, Strongly disagree, Don't know) along with a chart which demonstrates the proportion of responses received per question.
B22: � The dropdown box below the title, highlighted in blue, can be used to filter the charts to show the results for either independent schools or maintained schools and academies in England.
B23: Table 1: Submissions made to Parent View, between 1 September 2014 and 31 August 2015, for schools in England, broken down by type of school, phase, region and question
B25: Table 1 provides an overview of the Parent View results for independent schools and maintained schools and academies within England. The results are broken down by each question and additional information provided includes:
B26: ▪ the total number of submissions received and the response rate for each category,
B27: ▪ the percentage of positive and negative responses received for each question,
B28: ▪ and for maintained schools and academies, a further break down by phase (Nursery, Primary, Secondary, Special and Pupil referral unit) and region.
B30: � You can select the question you want to look at by clicking on the blue drop down box in the top right hand corner. The data will update to reflect your choice.
B32: How can I use this data?
B33: This data can be used to compare the performance of individual schools against the performance of those in England or those of the same phase or region. For example:
B34: ▪ Parents and guardians can see how their child’s school compares to others, and consider the performance of potential schools their child may attend.
B35: ▪ Teachers, leaders and governors can see how their own school performs against other schools.
B37: What are its limitations?
B38: ▪ The data is representative of the views of parents and guardians who filled in the questionnaire, but response rates are low so any conclusions should be made with caution.
B39: ▪ The data for independent schools covers those inspected by Ofsted, and not by other inspectorates.
B40: ▪ Response rates are estimates based upon pupil numbers because no data is available on the number of parents and guardians whose children attend any given school. More detail about this can be found on the Glossary and Methodology tab.

Sheet Glossary and Methodology
B2: Methodology
B4: What data was used to produce this management information?
B5: ▪ Data regarding opening/closing dates and school capacity was taken from Edubase on 03/11/2015.
B6: ▪ For independent schools, additional information regarding inspectorate changes was taken from Edubase on 16/11/2015.
B7: ▪ Data regarding total pupil numbers was taken from Edubase, according to the 15/01/2015 census.
B8: ▪ The data extract from Parent View contains submissions received between 01/09/2014 and 31/08/2015.
B10: How are response rates calculated?
B11: ▪ Response rates are calculated by dividing the total number of submissions received for each category by the total number of pupils recorded as attending the schools within that category. Where pupil numbers of 1 or 2 have been suppressed for a school, 2 has been used as their total within this calculation.
B12: ▪ School capacity has been used when there is a true value of zero or if no information is available regarding the total number of pupils.
B13: ▪ In the small number of cases where neither pieces of information are available, the schools submissions are removed from the calculation. However, their submissions are still included in the total number of submissions received and within the breakdown of responses by question.
B15: What other important points are there to note?
B16: ▪ Data in the tables and charts are rounded so may not add to 100%.
B17: ▪ As there is only a small number of independent schools, the Parent View results have not been broken down any further from the overall figure for England.
B18: ▪ Parents and guardians can update their views on schools throughout the year. This data set contains each individuals' most recent entry in that period.
B20: Glossary1
B22: Academy Converter
B23: All schools that have chosen through Governing Body Resolution and application to the Secretary of State to become an Academy under the Academies Act 2010.
B25: Independent School
B26: An Independent School is any school which provides full time education for 5 or more pupils of compulsory school age, which is not maintained by a local authority or a non-maintained special school.
B28: Phase
B29: Schools have been grouped according to Ofsted’s phase of education. All-through schools have been categorised as secondary. As a majority of their funding comes from local authorities, non-maintained special schools have been categorised as special and not as an independent school.
B31: Pupil Referral Unit
B32: A Pupil Referral Unit (PRU) is established and maintained by a local authority which is specially organised to provide education for children who are excluded, sick or otherwise unable to attend mainstream school and is not a special or other type of school.
B34: Region
B35: Schools have been grouped according to Ofsted region. This is similar to the government office region, however the North East and Yorkshire and Humber regions are combined.
B37: 1. Definitions regarding school types were taken from Edubase.

Sheet Chart 1
B2: ="Chart 1: Parent View responses received for " & LOWER(C3) & " in England between 1 September 2014 and 31 August 2015" -> Chart 1: Parent View responses received for maintained schools and academies in England between 1 September 2014 and 31 August 2015
B3: Select chart1,2: | C3: Maintained schools and academies | L3: Independent schools
L4: Maintained schools and academies
B5: This table shows the number of submissions received per response.
B6: Parent View question: | C6: ="Parents' responses (based on " & TEXT(L8,"0,000") & " submissions)" -> Parents' responses (based on 285,424 submissions)
C7: Strongly agree | D7: Agree | E7: Disagree | F7: Strongly disagree | G7: Don't know
B8: Q1. My child is happy at this school | C8: =$L$8*(M12/100) -> 182575 | D8: =$L$8*(N12/100) -> 81129 | E8: =$L$8*(O12/100) -> 12450 | F8: =$L$8*(P12/100) -> 7959 | G8: =$L$8*(Q12/100) -> 1311 | L8: =VLOOKUP(C3,Data!$A:$BH,MATCH("Number of Submissions",Data!$1:$1,0),FALSE) -> 285424
B9: Q2. My child feels safe at this school | C9: 183618 | D9: 83297 | E9: 9922 | F9: 6268 | G9: =$L$8*(Q13/100) -> 2319
B10: Q3. My child makes good progress at this school | C10: 145371 | D10: 103550 | E10: 21617 | F10: 9938 | G10: 4948
B11: Q4. My child is well looked after at this school | C11: 164661 | D11: 93387 | E11: 15700 | F11: 7836 | G11: 3840 | M11: Strongly agree | N11: Agree | O11: Disagree | P11: Strongly disagree | Q11: Don't know
B12: Q5. My child is taught well at this school | C12: 142572 | D12: 105502 | E12: 20725 | F12: 9279 | G12: 7346 | L12: Q1. My child is happy at this school | M12: =VLOOKUP($C$3,Data!$A:$BH,MATCH(CONCATENATE('Chart 1'!M$11,LEFT('Chart 1'!$L12,3)),Data!$1:$1,0),FALSE) -> 63.9662397 | N12: =VLOOKUP($C$3,Data!$A:$BH,MATCH(CONCATENATE('Chart 1'!N$11,LEFT('Chart 1'!$L12,3)),Data!$1:$1,0),FALSE) -> 28.42402881 | O12: =VLOOKUP($C$3,Data!$A:$BH,MATCH(CONCATENATE('Chart 1'!O$11,LEFT('Chart 1'!$L12,3)),Data!$1:$1,0),FALSE) -> 4.361931723 | P12: =VLOOKUP($C$3,Data!$A:$BH,MATCH(CONCATENATE('Chart 1'!P$11,LEFT('Chart 1'!$L12,3)),Data!$1:$1,0),FALSE) -> 2.788483099 | Q12: =VLOOKUP($C$3,Data!$A:$BH,MATCH(CONCATENATE('Chart 1'!Q$11,LEFT('Chart 1'!$L12,3)),Data!$1:$1,0),FALSE) -> 0.4593166657
B13: Q6. My child receives appropriate homework for their age | C13: 110677 | D13: 123226 | E13: 30862 | F13: 12428 | G13: 8231 | L13: Q2. My child feels safe at this school | M13: =VLOOKUP($C$3,Data!$A:$BH,MATCH(CONCATENATE('Chart 1'!M$11,LEFT('Chart 1'!$L13,3)),Data!$1:$1,0),FALSE) -> 64.33166097 | N13: =VLOOKUP($C$3,Data!$A:$BH,MATCH(CONCATENATE('Chart 1'!N$11,LEFT('Chart 1'!$L13,3)),Data!$1:$1,0),FALSE) -> 29.18360054 | O13: =VLOOKUP($C$3,Data!$A:$BH,MATCH(CONCATENATE('Chart 1'!O$11,LEFT('Chart 1'!$L13,3)),Data!$1:$1,0),FALSE) -> 3.476231852 | P13: =VLOOKUP($C$3,Data!$A:$BH,MATCH(CONCATENATE('Chart 1'!P$11,LEFT('Chart 1'!$L13,3)),Data!$1:$1,0),FALSE) -> 2.196031168 | Q13: =VLOOKUP($C$3,Data!$A:$BH,MATCH(CONCATENATE('Chart 1'!Q$11,LEFT('Chart 1'!$L13,3)),Data!$1:$1,0),FALSE) -> 0.8124754751
B14: Q7. This school makes sure its pupils are well behaved | C14: 141464 | D14: 104190 | E14: 20099 | F14: 11664 | G14: 8007 | L14: Q3. My child makes good progress at this school | M14: =VLOOKUP($C$3,Data!$A:$BH,MATCH(CONCATENATE('Chart 1'!M$11,LEFT('Chart 1'!$L14,3)),Data!$1:$1,0),FALSE) -> 50.9315965 | N14: =VLOOKUP($C$3,Data!$A:$BH,MATCH(CONCATENATE('Chart 1'!N$11,LEFT('Chart 1'!$L14,3)),Data!$1:$1,0),FALSE) -> 36.27935983 | O14: =VLOOKUP($C$3,Data!$A:$BH,MATCH(CONCATENATE('Chart 1'!O$11,LEFT('Chart 1'!$L14,3)),Data!$1:$1,0),FALSE) -> 7.573644823 | P14: =VLOOKUP($C$3,Data!$A:$BH,MATCH(CONCATENATE('Chart 1'!P$11,LEFT('Chart 1'!$L14,3)),Data!$1:$1,0),FALSE) -> 3.481837547 | Q14: =VLOOKUP($C$3,Data!$A:$BH,MATCH(CONCATENATE('Chart 1'!Q$11,LEFT('Chart 1'!$L14,3)),Data!$1:$1,0),FALSE) -> 1.733561298
B15: Q8. This school deals effectively with bullying | C15: 106545 | D15: 86323 | E15: 18615 | F15: 15638 | G15: 58303 | L15: Q4. My child is well looked after at this school | M15: =VLOOKUP($C$3,Data!$A:$BH,MATCH(CONCATENATE('Chart 1'!M$11,LEFT('Chart 1'!$L15,3)),Data!$1:$1,0),FALSE) -> 57.689963 | N15: =VLOOKUP($C$3,Data!$A:$BH,MATCH(CONCATENATE('Chart 1'!N$11,LEFT('Chart 1'!$L15,3)),Data!$1:$1,0),FALSE) -> 32.71869219 | O15: =VLOOKUP($C$3,Data!$A:$BH,MATCH(CONCATENATE('Chart 1'!O$11,LEFT('Chart 1'!$L15,3)),Data!$1:$1,0),FALSE) -> 5.500588598 | P15: =VLOOKUP($C$3,Data!$A:$BH,MATCH(CONCATENATE('Chart 1'!P$11,LEFT('Chart 1'!$L15,3)),Data!$1:$1,0),FALSE) -> 2.745389316 | Q15: =VLOOKUP($C$3,Data!$A:$BH,MATCH(CONCATENATE('Chart 1'!Q$11,LEFT('Chart 1'!$L15,3)),Data!$1:$1,0),FALSE) -> 1.345366893
B16: Q9. This school is well led and managed | C16: 148254 | D16: 86264 | E16: 20611 | F16: 18940 | G16: 11355 | L16: Q5. My child is taught well at this school | M16: =VLOOKUP($C$3,Data!$A:$BH,MATCH(CONCATENATE('Chart 1'!M$11,LEFT('Chart 1'!$L16,3)),Data!$1:$1,0),FALSE) -> 49.95095017 | N16: =VLOOKUP($C$3,Data!$A:$BH,MATCH(CONCATENATE('Chart 1'!N$11,LEFT('Chart 1'!$L16,3)),Data!$1:$1,0),FALSE) -> 36.96325467 | O16: =VLOOKUP($C$3,Data!$A:$BH,MATCH(CONCATENATE('Chart 1'!O$11,LEFT('Chart 1'!$L16,3)),Data!$1:$1,0),FALSE) -> 7.261127305 | P16: =VLOOKUP($C$3,Data!$A:$BH,MATCH(CONCATENATE('Chart 1'!P$11,LEFT('Chart 1'!$L16,3)),Data!$1:$1,0),FALSE) -> 3.250952968 | Q16: =VLOOKUP($C$3,Data!$A:$BH,MATCH(CONCATENATE('Chart 1'!Q$11,LEFT('Chart 1'!$L16,3)),Data!$1:$1,0),FALSE) -> 2.573714894
B17: Q10. This school responds well to any concerns I raise | C17: 137422 | D17: 89400 | E17: 25512 | F17: 18302 | G17: 14788 | L17: Q6. My child receives appropriate homework for their age | M17: =VLOOKUP($C$3,Data!$A:$BH,MATCH(CONCATENATE('Chart 1'!M$11,LEFT('Chart 1'!$L17,3)),Data!$1:$1,0),FALSE) -> 38.77634677 | N17: =VLOOKUP($C$3,Data!$A:$BH,MATCH(CONCATENATE('Chart 1'!N$11,LEFT('Chart 1'!$L17,3)),Data!$1:$1,0),FALSE) -> 43.17296373 | O17: =VLOOKUP($C$3,Data!$A:$BH,MATCH(CONCATENATE('Chart 1'!O$11,LEFT('Chart 1'!$L17,3)),Data!$1:$1,0),FALSE) -> 10.81268569 | P17: =VLOOKUP($C$3,Data!$A:$BH,MATCH(CONCATENATE('Chart 1'!P$11,LEFT('Chart 1'!$L17,3)),Data!$1:$1,0),FALSE) -> 4.354223891 | Q17: =VLOOKUP($C$3,Data!$A:$BH,MATCH(CONCATENATE('Chart 1'!Q$11,LEFT('Chart 1'!$L17,3)),Data!$1:$1,0),FALSE) -> 2.88377992
B18: Q11. I receive valuable information from the school about my child's progress | C18: 129748 | D18: 106707 | E18: 31555 | F18: 13369 | G18: 4045 | L18: Q7. This school makes sure its pupils are well behaved | M18: =VLOOKUP($C$3,Data!$A:$BH,MATCH(CONCATENATE('Chart 1'!M$11,LEFT('Chart 1'!$L18,3)),Data!$1:$1,0),FALSE) -> 49.56275576 | N18: =VLOOKUP($C$3,Data!$A:$BH,MATCH(CONCATENATE('Chart 1'!N$11,LEFT('Chart 1'!$L18,3)),Data!$1:$1,0),FALSE) -> 36.50358765 | O18: =VLOOKUP($C$3,Data!$A:$BH,MATCH(CONCATENATE('Chart 1'!O$11,LEFT('Chart 1'!$L18,3)),Data!$1:$1,0),FALSE) -> 7.041804473 | P18: =VLOOKUP($C$3,Data!$A:$BH,MATCH(CONCATENATE('Chart 1'!P$11,LEFT('Chart 1'!$L18,3)),Data!$1:$1,0),FALSE) -> 4.086551937 | Q18: =VLOOKUP($C$3,Data!$A:$BH,MATCH(CONCATENATE('Chart 1'!Q$11,LEFT('Chart 1'!$L18,3)),Data!$1:$1,0),FALSE) -> 2.805300185
B19: Q12. Would you recommend this school to another parent? | C19: =$L$8*(M23/100) -> 245565 | F19: =$L$8*(P23/100) -> 39859 | L19: Q8. This school deals effectively with bullying | M19: =VLOOKUP($C$3,Data!$A:$BH,MATCH(CONCATENATE('Chart 1'!M$11,LEFT('Chart 1'!$L19,3)),Data!$1:$1,0),FALSE) -> 37.32867593 | N19: =VLOOKUP($C$3,Data!$A:$BH,MATCH(CONCATENATE('Chart 1'!N$11,LEFT('Chart 1'!$L19,3)),Data!$1:$1,0),FALSE) -> 30.24377768 | O19: =VLOOKUP($C$3,Data!$A:$BH,MATCH(CONCATENATE('Chart 1'!O$11,LEFT('Chart 1'!$L19,3)),Data!$1:$1,0),FALSE) -> 6.521876226 | P19: =VLOOKUP($C$3,Data!$A:$BH,MATCH(CONCATENATE('Chart 1'!P$11,LEFT('Chart 1'!$L19,3)),Data!$1:$1,0),FALSE) -> 5.478866528 | Q19: =VLOOKUP($C$3,Data!$A:$BH,MATCH(CONCATENATE('Chart 1'!Q$11,LEFT('Chart 1'!$L19,3)),Data!$1:$1,0),FALSE) -> 20.42680363
F20: Source: Parent View | L20: Q9. This school is well led and managed | M20: =VLOOKUP($C$3,Data!$A:$BH,MATCH(CONCATENATE('Chart 1'!M$11,LEFT('Chart 1'!$L20,3)),Data!$1:$1,0),FALSE) -> 51.94167274 | N20: =VLOOKUP($C$3,Data!$A:$BH,MATCH(CONCATENATE('Chart 1'!N$11,LEFT('Chart 1'!$L20,3)),Data!$1:$1,0),FALSE) -> 30.22310668 | O20: =VLOOKUP($C$3,Data!$A:$BH,MATCH(CONCATENATE('Chart 1'!O$11,LEFT('Chart 1'!$L20,3)),Data!$1:$1,0),FALSE) -> 7.221186726 | P20: =VLOOKUP($C$3,Data!$A:$BH,MATCH(CONCATENATE('Chart 1'!P$11,LEFT('Chart 1'!$L20,3)),Data!$1:$1,0),FALSE) -> 6.635741914 | Q20: =VLOOKUP($C$3,Data!$A:$BH,MATCH(CONCATENATE('Chart 1'!Q$11,LEFT('Chart 1'!$L20,3)),Data!$1:$1,0),FALSE) -> 3.978291945
L21: Q10. This school responds well to any concerns I raise | M21: =VLOOKUP($C$3,Data!$A:$BH,MATCH(CONCATENATE('Chart 1'!M$11,LEFT('Chart 1'!$L21,3)),Data!$1:$1,0),FALSE) -> 48.14661696 | N21: =VLOOKUP($C$3,Data!$A:$BH,MATCH(CONCATENATE('Chart 1'!N$11,LEFT('Chart 1'!$L21,3)),Data!$1:$1,0),FALSE) -> 31.32182297 | O21: =VLOOKUP($C$3,Data!$A:$BH,MATCH(CONCATENATE('Chart 1'!O$11,LEFT('Chart 1'!$L21,3)),Data!$1:$1,0),FALSE) -> 8.938281294 | P21: =VLOOKUP($C$3,Data!$A:$BH,MATCH(CONCATENATE('Chart 1'!P$11,LEFT('Chart 1'!$L21,3)),Data!$1:$1,0),FALSE) -> 6.41221481 | Q21: =VLOOKUP($C$3,Data!$A:$BH,MATCH(CONCATENATE('Chart 1'!Q$11,LEFT('Chart 1'!$L21,3)),Data!$1:$1,0),FALSE) -> 5.181063961
L22: Q11. I receive valuable information from the school about my child's progress | M22: =VLOOKUP($C$3,Data!$A:$BH,MATCH(CONCATENATE('Chart 1'!M$11,LEFT('Chart 1'!$L22,3)),Data!$1:$1,0),FALSE) -> 45.45798531 | N22: =VLOOKUP($C$3,Data!$A:$BH,MATCH(CONCATENATE('Chart 1'!N$11,LEFT('Chart 1'!$L22,3)),Data!$1:$1,0),FALSE) -> 37.3854336 | O22: =VLOOKUP($C$3,Data!$A:$BH,MATCH(CONCATENATE('Chart 1'!O$11,LEFT('Chart 1'!$L22,3)),Data!$1:$1,0),FALSE) -> 11.05548237 | P22: =VLOOKUP($C$3,Data!$A:$BH,MATCH(CONCATENATE('Chart 1'!P$11,LEFT('Chart 1'!$L22,3)),Data!$1:$1,0),FALSE) -> 4.683908851 | Q22: =VLOOKUP($C$3,Data!$A:$BH,MATCH(CONCATENATE('Chart 1'!Q$11,LEFT('Chart 1'!$L22,3)),Data!$1:$1,0),FALSE) -> 1.417189865
L23: Q12. Would you recommend this school to another parent? | M23: =VLOOKUP($C$3,Data!$A:$BH,MATCH("YesQ12",Data!$1:$1,0),FALSE) -> 86.03516172 | P23: =VLOOKUP($C$3,Data!$A:$BH,MATCH("NoQ12",Data!$1:$1,0),FALSE) -> 13.96483828
F45: Percentage of submissions per response
B47: 1 The percentages shown in the chart have been rounded and may not add up to 100.
B48: 2 The data is representative of the views of parents and guardians who filled in the questionnaire, but response rates are low so any conclusions should be made with caution.

Sheet Table 1
AA1: Q1. My child is happy at this school (%)
B2: Table 1: Submissions made to Parent View, between 1 September 2014 and 31 August 2015, for schools in England, broken down by type of school, phase, region and question1,2,3 | AA2: Q2. My child feels safe at this school (%)
AA3: Q3. My child makes good progress at this school (%)
K4: Q1. My child is happy at this school (%) | AA4: Q4. My child is well looked after at this school (%)
B5: For more information about Parent View visit: http://parentview.ofsted.gov.uk | F5: Number of submissions | H5: Response rate (%) | K5: =IF(K4=AA12,"", "Strongly agree") -> Strongly agree | L5: =IF(K4=AA12, "Yes", "Agree") -> Agree | M5: =IF(K4=AA12, "", "Disagree") -> Disagree | N5: =IF(K4=AA12, "No", "Strongly disagree") -> Strongly disagree | O5: =IF(K4=AA12, "", "Don't know") -> Don't know | Q5: Positive | R5: Negative | AA5: Q5. My child is taught well at this school (%)
AA6: Q6. My child receives appropriate homework for their age (%)
B7: Parent View benchmarks for schools in England | AA7: Q7. This school makes sure its pupils are well behaved (%)
AA8: Q8. This school deals effectively with bullying (%)
B9: Independent schools | F9: =VLOOKUP($B$9,Data!$A:$BH,MATCH($F$5,Data!$1:$1,0),FALSE) -> 3528 | H9: =VLOOKUP($B$9,Data!$A:$BH,MATCH($H$5,Data!$1:$1,0),FALSE) -> 3.995289002 | K9: =IF($K$5="","",VLOOKUP($B$9,Data!$A:$BH,MATCH(CONCATENATE($K$5,LEFT($K$4,3)),Data!$1:$1,0),FALSE)) -> 77.21088435 | L9: =IF($L$5="","",VLOOKUP($B$9,Data!$A:$BH,MATCH(CONCATENATE($L$5,LEFT($K$4,3)),Data!$1:$1,0),FALSE)) -> 17.23356009 | M9: =IF($M$5="","",VLOOKUP($B$9,Data!$A:$BH,MATCH(CONCATENATE($M$5,LEFT($K$4,3)),Data!$1:$1,0),FALSE)) -> 3.089569161 | N9: =IF($N$5="","",VLOOKUP($B$9,Data!$A:$BH,MATCH(CONCATENATE($N$5,LEFT($K$4,3)),Data!$1:$1,0),FALSE)) -> 1.757369615 | O9: =IF($O$5="","",VLOOKUP($B$9,Data!$A:$BH,MATCH(CONCATENATE($O$5,LEFT($K$4,3)),Data!$1:$1,0),FALSE)) -> 0.70861678 | Q9: =SUM($K$9:$L$9) -> 94.44444444 | R9: =SUM($M$9:$N$9) -> 4.846938776 | AA9: Q9. This school is well led and managed (%)
B10: Average number of submissions per independent school | F10: =VLOOKUP($B$10,Data!$A:$BH,MATCH($F$5,Data!$1:$1,0),FALSE) -> 4 | AA10: Q10. This school responds well to any concerns I raise (%)
AA11: Q11. I receive valuable information from the school about my child's progress (%)
B12: Maintained schools and academies | F12: =VLOOKUP($B$12,Data!$A:$BH,MATCH($F$5,Data!$1:$1,0),FALSE) -> 285424 | H12: =VLOOKUP($B$12,Data!$A:$BH,MATCH($H$5,Data!$1:$1,0),FALSE) -> 3.733251676 | K12: =IF($K$5="","",VLOOKUP($B$12,Data!$A:$BH,MATCH(CONCATENATE($K$5,LEFT($K$4,3)),Data!$1:$1,0),FALSE)) -> 63.9662397 | L12: =IF($L$5="","",VLOOKUP($B$12,Data!$A:$BH,MATCH(CONCATENATE($L$5,LEFT($K$4,3)),Data!$1:$1,0),FALSE)) -> 28.42402881 | M12: =IF($M$5="","",VLOOKUP($B$12,Data!$A:$BH,MATCH(CONCATENATE($M$5,LEFT($K$4,3)),Data!$1:$1,0),FALSE)) -> 4.361931723 | N12: =IF($N$5="","",VLOOKUP($B$12,Data!$A:$BH,MATCH(CONCATENATE($N$5,LEFT($K$4,3)),Data!$1:$1,0),FALSE)) -> 2.788483099 | O12: =IF($O$5="","",VLOOKUP($B$12,Data!$A:$BH,MATCH(CONCATENATE($O$5,LEFT($K$4,3)),Data!$1:$1,0),FALSE)) -> 0.4593166657 | Q12: =SUM($K$12:$L$12) -> 92.39026851 | R12: =SUM($M$12:$N$12) -> 7.150414821 | AA12: Q12. Would you recommend this school to another parent? (%)
B13: Average number of submissions per maintained school | F13: =VLOOKUP($B$13,Data!$A:$BH,MATCH($F$5,Data!$1:$1,0),FALSE) -> 13
B15: All data below refers to maintained schools and academies only
B18: Phase
B20: Nursery | F20: =VLOOKUP($B$20,Data!$A:$BH,MATCH($F$5,Data!$1:$1,0),FALSE) -> 2343 | H20: =VLOOKUP($B$20,Data!$A:$BH,MATCH($H$5,Data!$1:$1,0),FALSE) -> 5.665852538 | K20: =IF($K$5="","",VLOOKUP($B$20,Data!$A:$BH,MATCH(CONCATENATE($K$5,LEFT($K$4,3)),Data!$1:$1,0),FALSE)) -> 85.61673069 | L20: =IF($L$5="","",VLOOKUP($B$20,Data!$A:$BH,MATCH(CONCATENATE($L$5,LEFT($K$4,3)),Data!$1:$1,0),FALSE)) -> 13.14553991 | M20: =IF($M$5="","",VLOOKUP($B$20,Data!$A:$BH,MATCH(CONCATENATE($M$5,LEFT($K$4,3)),Data!$1:$1,0),FALSE)) -> 0.6402048656 | N20: =IF($N$5="","",VLOOKUP($B$20,Data!$A:$BH,MATCH(CONCATENATE($N$5,LEFT($K$4,3)),Data!$1:$1,0),FALSE)) -> 0.2560819462 | O20: =IF($O$5="","",VLOOKUP($B$20,Data!$A:$BH,MATCH(CONCATENATE($O$5,LEFT($K$4,3)),Data!$1:$1,0),FALSE)) -> 0.341442595 | Q20: =SUM($K$20:$L$20) -> 98.76227059 | R20: =SUM($M$20:$N$20) -> 0.8962868118
B21: Primary | F21: =VLOOKUP($B$21,Data!$A:$BH,MATCH($F$5,Data!$1:$1,0),FALSE) -> 196616 | H21: =VLOOKUP($B$21,Data!$A:$BH,MATCH($H$5,Data!$1:$1,0),FALSE) -> 4.488599292 | K21: =IF($K$5="","",VLOOKUP($B$21,Data!$A:$BH,MATCH(CONCATENATE($K$5,LEFT($K$4,3)),Data!$1:$1,0),FALSE)) -> 68.28131993 | L21: =IF($L$5="","",VLOOKUP($B$21,Data!$A:$BH,MATCH(CONCATENATE($L$5,LEFT($K$4,3)),Data!$1:$1,0),FALSE)) -> 25.54878545 | M21: =IF($M$5="","",VLOOKUP($B$21,Data!$A:$BH,MATCH(CONCATENATE($M$5,LEFT($K$4,3)),Data!$1:$1,0),FALSE)) -> 3.552101558 | N21: =IF($N$5="","",VLOOKUP($B$21,Data!$A:$BH,MATCH(CONCATENATE($N$5,LEFT($K$4,3)),Data!$1:$1,0),FALSE)) -> 2.220063474 | O21: =IF($O$5="","",VLOOKUP($B$21,Data!$A:$BH,MATCH(CONCATENATE($O$5,LEFT($K$4,3)),Data!$1:$1,0),FALSE)) -> 0.3977295846 | Q21: =SUM($K$21:$L$21) -> 93.83010538 | R21: =SUM($M$21:$N$21) -> 5.772165032
B22: Secondary | F22: =VLOOKUP($B$22,Data!$A:$BH,MATCH($F$5,Data!$1:$1,0),FALSE) -> 80879 | H22: =VLOOKUP($B$22,Data!$A:$BH,MATCH($H$5,Data!$1:$1,0),FALSE) -> 2.602512189 | K22: =IF($K$5="","",VLOOKUP($B$22,Data!$A:$BH,MATCH(CONCATENATE($K$5,LEFT($K$4,3)),Data!$1:$1,0),FALSE)) -> 52.31024122 | L22: =IF($L$5="","",VLOOKUP($B$22,Data!$A:$BH,MATCH(CONCATENATE($L$5,LEFT($K$4,3)),Data!$1:$1,0),FALSE)) -> 36.38150818 | M22: =IF($M$5="","",VLOOKUP($B$22,Data!$A:$BH,MATCH(CONCATENATE($M$5,LEFT($K$4,3)),Data!$1:$1,0),FALSE)) -> 6.509724403 | N22: =IF($N$5="","",VLOOKUP($B$22,Data!$A:$BH,MATCH(CONCATENATE($N$5,LEFT($K$4,3)),Data!$1:$1,0),FALSE)) -> 4.238430248 | O22: =IF($O$5="","",VLOOKUP($B$22,Data!$A:$BH,MATCH(CONCATENATE($O$5,LEFT($K$4,3)),Data!$1:$1,0),FALSE)) -> 0.5600959458 | Q22: =SUM($K$22:$L$22) -> 88.6917494 | R22: =SUM($M$22:$N$22) -> 10.74815465
B23: Special | F23: =VLOOKUP($B$23,Data!$A:$BH,MATCH($F$5,Data!$1:$1,0),FALSE) -> 5219 | H23: =VLOOKUP($B$23,Data!$A:$BH,MATCH($H$5,Data!$1:$1,0),FALSE) -> 5.115613452 | K23: =IF($K$5="","",VLOOKUP($B$23,Data!$A:$BH,MATCH(CONCATENATE($K$5,LEFT($K$4,3)),Data!$1:$1,0),FALSE)) -> 72.98333014 | L23: =IF($L$5="","",VLOOKUP($B$23,Data!$A:$BH,MATCH(CONCATENATE($L$5,LEFT($K$4,3)),Data!$1:$1,0),FALSE)) -> 20.25292202 | M23: =IF($M$5="","",VLOOKUP($B$23,Data!$A:$BH,MATCH(CONCATENATE($M$5,LEFT($K$4,3)),Data!$1:$1,0),FALSE)) -> 3.084882161 | N23: =IF($N$5="","",VLOOKUP($B$23,Data!$A:$BH,MATCH(CONCATENATE($N$5,LEFT($K$4,3)),Data!$1:$1,0),FALSE)) -> 2.548380916 | O23: =IF($O$5="","",VLOOKUP($B$23,Data!$A:$BH,MATCH(CONCATENATE($O$5,LEFT($K$4,3)),Data!$1:$1,0),FALSE)) -> 1.130484767 | Q23: =SUM($K$23:$L$23) -> 93.23625216 | R23: =SUM($M$23:$N$23) -> 5.633263077
B24: Pupil referral unit | F24: =VLOOKUP($B$24,Data!$A:$BH,MATCH($F$5,Data!$1:$1,0),FALSE) -> 367 | H24: =VLOOKUP($B$24,Data!$A:$BH,MATCH($H$5,Data!$1:$1,0),FALSE) -> 2.577777778 | K24: =IF($K$5="","",VLOOKUP($B$24,Data!$A:$BH,MATCH(CONCATENATE($K$5,LEFT($K$4,3)),Data!$1:$1,0),FALSE)) -> 54.49591281 | L24: =IF($L$5="","",VLOOKUP($B$24,Data!$A:$BH,MATCH(CONCATENATE($L$5,LEFT($K$4,3)),Data!$1:$1,0),FALSE)) -> 28.88283379 | M24: =IF($M$5="","",VLOOKUP($B$24,Data!$A:$BH,MATCH(CONCATENATE($M$5,LEFT($K$4,3)),Data!$1:$1,0),FALSE)) -> 6.811989101 | N24: =IF($N$5="","",VLOOKUP($B$24,Data!$A:$BH,MATCH(CONCATENATE($N$5,LEFT($K$4,3)),Data!$1:$1,0),FALSE)) -> 7.356948229 | O24: =IF($O$5="","",VLOOKUP($B$24,Data!$A:$BH,MATCH(CONCATENATE($O$5,LEFT($K$4,3)),Data!$1:$1,0),FALSE)) -> 2.452316076 | Q24: =SUM($K$24:$L$24) -> 83.37874659 | R24: =SUM($M$24:$N$24) -> 14.16893733
B26: Ofsted Region
B28: East Midlands | F28: =VLOOKUP($B$28,Data!$A:$BH,MATCH($F$5,Data!$1:$1,0),FALSE) -> 24935 | H28: =VLOOKUP($B$28,Data!$A:$BH,MATCH($H$5,Data!$1:$1,0),FALSE) -> 3.815409757 | K28: =IF($K$5="","",VLOOKUP($B$28,Data!$A:$BH,MATCH(CONCATENATE($K$5,LEFT($K$4,3)),Data!$1:$1,0),FALSE)) -> 62.11750551 | L28: =IF($L$5="","",VLOOKUP($B$28,Data!$A:$BH,MATCH(CONCATENATE($L$5,LEFT($K$4,3)),Data!$1:$1,0),FALSE)) -> 29.88971325 | M28: =IF($M$5="","",VLOOKUP($B$28,Data!$A:$BH,MATCH(CONCATENATE($M$5,LEFT($K$4,3)),Data!$1:$1,0),FALSE)) -> 4.700220573 | N28: =IF($N$5="","",VLOOKUP($B$28,Data!$A:$BH,MATCH(CONCATENATE($N$5,LEFT($K$4,3)),Data!$1:$1,0),FALSE)) -> 2.879486665 | O28: =IF($O$5="","",VLOOKUP($B$28,Data!$A:$BH,MATCH(CONCATENATE($O$5,LEFT($K$4,3)),Data!$1:$1,0),FALSE)) -> 0.4130739924 | Q28: =SUM($K$28:$L$28) -> 92.00721877 | R28: =SUM($M$28:$N$28) -> 7.579707239
B30: East of England | F30: =VLOOKUP($B$30,Data!$A:$BH,MATCH($F$5,Data!$1:$1,0),FALSE) -> 41271 | H30: =VLOOKUP($B$30,Data!$A:$BH,MATCH($H$5,Data!$1:$1,0),FALSE) -> 4.854805221 | K30: =IF($K$5="","",VLOOKUP($B$30,Data!$A:$BH,MATCH(CONCATENATE($K$5,LEFT($K$4,3)),Data!$1:$1,0),FALSE)) -> 62.15744712 | L30: =IF($L$5="","",VLOOKUP($B$30,Data!$A:$BH,MATCH(CONCATENATE($L$5,LEFT($K$4,3)),Data!$1:$1,0),FALSE)) -> 30.0816554 | M30: =IF($M$5="","",VLOOKUP($B$30,Data!$A:$BH,MATCH(CONCATENATE($M$5,LEFT($K$4,3)),Data!$1:$1,0),FALSE)) -> 4.610985922 | N30: =IF($N$5="","",VLOOKUP($B$30,Data!$A:$BH,MATCH(CONCATENATE($N$5,LEFT($K$4,3)),Data!$1:$1,0),FALSE)) -> 2.689539871 | O30: =IF($O$5="","",VLOOKUP($B$30,Data!$A:$BH,MATCH(CONCATENATE($O$5,LEFT($K$4,3)),Data!$1:$1,0),FALSE)) -> 0.4603716896 | Q30: =SUM($K$30:$L$30) -> 92.23910252 | R30: =SUM($M$30:$N$30) -> 7.300525793
B32: London | F32: =VLOOKUP($B$32,Data!$A:$BH,MATCH($F$5,Data!$1:$1,0),FALSE) -> 35223 | H32: =VLOOKUP($B$32,Data!$A:$BH,MATCH($H$5,Data!$1:$1,0),FALSE) -> 2.881648929 | K32: =IF($K$5="","",VLOOKUP($B$32,Data!$A:$BH,MATCH(CONCATENATE($K$5,LEFT($K$4,3)),Data!$1:$1,0),FALSE)) -> 66.74616018 | L32: =IF($L$5="","",VLOOKUP($B$32,Data!$A:$BH,MATCH(CONCATENATE($L$5,LEFT($K$4,3)),Data!$1:$1,0),FALSE)) -> 26.83757772 | M32: =IF($M$5="","",VLOOKUP($B$32,Data!$A:$BH,MATCH(CONCATENATE($M$5,LEFT($K$4,3)),Data!$1:$1,0),FALSE)) -> 3.395508617 | N32: =IF($N$5="","",VLOOKUP($B$32,Data!$A:$BH,MATCH(CONCATENATE($N$5,LEFT($K$4,3)),Data!$1:$1,0),FALSE)) -> 2.478494166 | O32: =IF($O$5="","",VLOOKUP($B$32,Data!$A:$BH,MATCH(CONCATENATE($O$5,LEFT($K$4,3)),Data!$1:$1,0),FALSE)) -> 0.5422593192 | Q32: =SUM($K$32:$L$32) -> 93.5837379 | R32: =SUM($M$32:$N$32) -> 5.874002782
B34: North East, Yorkshire and Humber | F34: =VLOOKUP($B$34,Data!$A:$BH,MATCH($F$5,Data!$1:$1,0),FALSE) -> 36957 | H34: =VLOOKUP($B$34,Data!$A:$BH,MATCH($H$5,Data!$1:$1,0),FALSE) -> 3.20191921 | K34: =IF($K$5="","",VLOOKUP($B$34,Data!$A:$BH,MATCH(CONCATENATE($K$5,LEFT($K$4,3)),Data!$1:$1,0),FALSE)) -> 63.15718267 | L34: =IF($L$5="","",VLOOKUP($B$34,Data!$A:$BH,MATCH(CONCATENATE($L$5,LEFT($K$4,3)),Data!$1:$1,0),FALSE)) -> 28.0894012 | M34: =IF($M$5="","",VLOOKUP($B$34,Data!$A:$BH,MATCH(CONCATENATE($M$5,LEFT($K$4,3)),Data!$1:$1,0),FALSE)) -> 4.994994182 | N34: =IF($N$5="","",VLOOKUP($B$34,Data!$A:$BH,MATCH(CONCATENATE($N$5,LEFT($K$4,3)),Data!$1:$1,0),FALSE)) -> 3.290310361 | O34: =IF($O$5="","",VLOOKUP($B$34,Data!$A:$BH,MATCH(CONCATENATE($O$5,LEFT($K$4,3)),Data!$1:$1,0),FALSE)) -> 0.4681115891 | Q34: =SUM($K$34:$L$34) -> 91.24658387 | R34: =SUM($M$34:$N$34) -> 8.285304543
B36: North West | F36: =VLOOKUP($B$36,Data!$A:$BH,MATCH($F$5,Data!$1:$1,0),FALSE) -> 33935 | H36: =VLOOKUP($B$36,Data!$A:$BH,MATCH($H$5,Data!$1:$1,0),FALSE) -> 3.263919146 | K36: =IF($K$5="","",VLOOKUP($B$36,Data!$A:$BH,MATCH(CONCATENATE($K$5,LEFT($K$4,3)),Data!$1:$1,0),FALSE)) -> 64.62943863 | L36: =IF($L$5="","",VLOOKUP($B$36,Data!$A:$BH,MATCH(CONCATENATE($L$5,LEFT($K$4,3)),Data!$1:$1,0),FALSE)) -> 27.26094003 | M36: =IF($M$5="","",VLOOKUP($B$36,Data!$A:$BH,MATCH(CONCATENATE($M$5,LEFT($K$4,3)),Data!$1:$1,0),FALSE)) -> 4.52630028 | N36: =IF($N$5="","",VLOOKUP($B$36,Data!$A:$BH,MATCH(CONCATENATE($N$5,LEFT($K$4,3)),Data!$1:$1,0),FALSE)) -> 3.01753352 | O36: =IF($O$5="","",VLOOKUP($B$36,Data!$A:$BH,MATCH(CONCATENATE($O$5,LEFT($K$4,3)),Data!$1:$1,0),FALSE)) -> 0.565787535 | Q36: =SUM($K$36:$L$36) -> 91.89037867 | R36: =SUM($M$36:$N$36) -> 7.5438338
B38: South East | F38: =VLOOKUP($B$38,Data!$A:$BH,MATCH($F$5,Data!$1:$1,0),FALSE) -> 56105 | H38: =VLOOKUP($B$38,Data!$A:$BH,MATCH($H$5,Data!$1:$1,0),FALSE) -> 4.725040762 | K38: =IF($K$5="","",VLOOKUP($B$38,Data!$A:$BH,MATCH(CONCATENATE($K$5,LEFT($K$4,3)),Data!$1:$1,0),FALSE)) -> 65.09223777 | L38: =IF($L$5="","",VLOOKUP($B$38,Data!$A:$BH,MATCH(CONCATENATE($L$5,LEFT($K$4,3)),Data!$1:$1,0),FALSE)) -> 28.18108903 | M38: =IF($M$5="","",VLOOKUP($B$38,Data!$A:$BH,MATCH(CONCATENATE($M$5,LEFT($K$4,3)),Data!$1:$1,0),FALSE)) -> 3.992514036 | N38: =IF($N$5="","",VLOOKUP($B$38,Data!$A:$BH,MATCH(CONCATENATE($N$5,LEFT($K$4,3)),Data!$1:$1,0),FALSE)) -> 2.306389805 | O38: =IF($O$5="","",VLOOKUP($B$38,Data!$A:$BH,MATCH(CONCATENATE($O$5,LEFT($K$4,3)),Data!$1:$1,0),FALSE)) -> 0.427769361 | Q38: =SUM($K$38:$L$38) -> 93.2733268 | R38: =SUM($M$38:$N$38) -> 6.298903841
B40: South West | F40: =VLOOKUP($B$40,Data!$A:$BH,MATCH($F$5,Data!$1:$1,0),FALSE) -> 31287 | H40: =VLOOKUP($B$40,Data!$A:$BH,MATCH($H$5,Data!$1:$1,0),FALSE) -> 4.495943348 | K40: =IF($K$5="","",VLOOKUP($B$40,Data!$A:$BH,MATCH(CONCATENATE($K$5,LEFT($K$4,3)),Data!$1:$1,0),FALSE)) -> 63.79646499 | L40: =IF($L$5="","",VLOOKUP($B$40,Data!$A:$BH,MATCH(CONCATENATE($L$5,LEFT($K$4,3)),Data!$1:$1,0),FALSE)) -> 28.13948285 | M40: =IF($M$5="","",VLOOKUP($B$40,Data!$A:$BH,MATCH(CONCATENATE($M$5,LEFT($K$4,3)),Data!$1:$1,0),FALSE)) -> 4.628120306 | N40: =IF($N$5="","",VLOOKUP($B$40,Data!$A:$BH,MATCH(CONCATENATE($N$5,LEFT($K$4,3)),Data!$1:$1,0),FALSE)) -> 3.017227603 | O40: =IF($O$5="","",VLOOKUP($B$40,Data!$A:$BH,MATCH(CONCATENATE($O$5,LEFT($K$4,3)),Data!$1:$1,0),FALSE)) -> 0.4187042542 | Q40: =SUM($K$40:$L$40) -> 91.93594784 | R40: =SUM($M$40:$N$40) -> 7.645347908
B42: West Midlands | F42: =VLOOKUP($B$42,Data!$A:$BH,MATCH($F$5,Data!$1:$1,0),FALSE) -> 25711 | H42: =VLOOKUP($B$42,Data!$A:$BH,MATCH($H$5,Data!$1:$1,0),FALSE) -> 3.052318506 | K42: =IF($K$5="","",VLOOKUP($B$42,Data!$A:$BH,MATCH(CONCATENATE($K$5,LEFT($K$4,3)),Data!$1:$1,0),FALSE)) -> 62.89136945 | L42: =IF($L$5="","",VLOOKUP($B$42,Data!$A:$BH,MATCH(CONCATENATE($L$5,LEFT($K$4,3)),Data!$1:$1,0),FALSE)) -> 29.40764653 | M42: =IF($M$5="","",VLOOKUP($B$42,Data!$A:$BH,MATCH(CONCATENATE($M$5,LEFT($K$4,3)),Data!$1:$1,0),FALSE)) -> 4.313328925 | N42: =IF($N$5="","",VLOOKUP($B$42,Data!$A:$BH,MATCH(CONCATENATE($N$5,LEFT($K$4,3)),Data!$1:$1,0),FALSE)) -> 3.033720975 | O42: =IF($O$5="","",VLOOKUP($B$42,Data!$A:$BH,MATCH(CONCATENATE($O$5,LEFT($K$4,3)),Data!$1:$1,0),FALSE)) -> 0.3539341138 | Q42: =SUM($K$42:$L$42) -> 92.29901599 | R42: =SUM($M$42:$N$42) -> 7.347049901
B45: 1 The percentages shown in the table have been rounded and may not add up to 100.
B46: 2 The data is representative of the views of parents and guardians who filled in the questionnaire, but response rates are low so any conclusions should be made with caution.
B47: 3 The column 'Positive' is the combination of those responding with 'Strongly agree' and 'Agree', 'Negative' is the combination of those responding with 'Strongly disagree' and 'Disagree'

Sheet Data (hidden)
A1: Group Description | B1: Number of Submissions | C1: Response Rate (%) | D1: Strongly AgreeQ1. | E1: AgreeQ1. | F1: DisagreeQ1. | G1: Strongly DisagreeQ1. | H1: Don't KnowQ1. | I1: Strongly AgreeQ2. | J1: AgreeQ2. | K1: DisagreeQ2. | L1: Strongly DisagreeQ2. | M1: Don't KnowQ2. | N1: Strongly AgreeQ3. | O1: AgreeQ3. | P1: DisagreeQ3. | Q1: Strongly DisagreeQ3. | R1: Don't KnowQ3. | S1: Strongly AgreeQ4. | T1: AgreeQ4. | U1: DisagreeQ4. | V1: Strongly DisagreeQ4. | W1: Don't KnowQ4. | X1: Strongly AgreeQ5. | Y1: AgreeQ5. | Z1: DisagreeQ5. | AA1: Strongly DisagreeQ5. | AB1: Don't KnowQ5. | AC1: Strongly AgreeQ6. | AD1: AgreeQ6. | AE1: DisagreeQ6. | AF1: Strongly DisagreeQ6. | AG1: Don't KnowQ6. | AH1: Strongly AgreeQ7. | AI1: AgreeQ7. | AJ1: DisagreeQ7. | AK1: Strongly DisagreeQ7. | AL1: Don't KnowQ7. | AM1: Strongly AgreeQ8. | AN1: AgreeQ8. | AO1: DisagreeQ8. | AP1: Strongly DisagreeQ8. | AQ1: Don't KnowQ8. | AR1: Strongly AgreeQ9. | AS1: AgreeQ9. | AT1: DisagreeQ9. | AU1: Strongly DisagreeQ9. | AV1: Don't KnowQ9. | AW1: Strongly AgreeQ10 | AX1: AgreeQ10 | AY1: DisagreeQ10 | AZ1: Strongly DisagreeQ10 | BA1: Don't KnowQ10 | BB1: Strongly AgreeQ11 | BC1: AgreeQ11 | BD1: DisagreeQ11 | BE1: Strongly DisagreeQ11 | BF1: Don't KnowQ11 | BG1: YesQ12 | BH1: NoQ12
A2: Average number of submissions per independent school | B2: 4 | C2: 0 | D2: 0 | E2: 0 | F2: 0 | G2: 0 | H2: 0 | I2: 0 | J2: 0 | K2: 0 | L2: 0 | M2: 0 | N2: 0 | O2: 0 | P2: 0 | Q2: 0 | R2: 0 | S2: 0 | T2: 0 | U2: 0 | V2: 0 | W2: 0 | X2: 0 | Y2: 0 | Z2: 0 | AA2: 0 | AB2: 0 | AC2: 0 | AD2: 0 | AE2: 0 | AF2: 0 | AG2: 0 | AH2: 0 | AI2: 0 | AJ2: 0 | AK2: 0 | AL2: 0 | AM2: 0 | AN2: 0 | AO2: 0 | AP2: 0 | AQ2: 0 | AR2: 0 | AS2: 0 | AT2: 0 | AU2: 0 | AV2: 0 | AW2: 0 | AX2: 0 | AY2: 0 | AZ2: 0 | BA2: 0 | BB2: 0 | BC2: 0 | BD2: 0 | BE2: 0 | BF2: 0 | BG2: 0 | BH2: 0
A3: Average number of submissions per maintained school | B3: 13 | C3: 0 | D3: 0 | E3: 0 | F3: 0 | G3: 0 | H3: 0 | I3: 0 | J3: 0 | K3: 0 | L3: 0 | M3: 0 | N3: 0 | O3: 0 | P3: 0 | Q3: 0 | R3: 0 | S3: 0 | T3: 0 | U3: 0 | V3: 0 | W3: 0 | X3: 0 | Y3: 0 | Z3: 0 | AA3: 0 | AB3: 0 | AC3: 0 | AD3: 0 | AE3: 0 | AF3: 0 | AG3: 0 | AH3: 0 | AI3: 0 | AJ3: 0 | AK3: 0 | AL3: 0 | AM3: 0 | AN3: 0 | AO3: 0 | AP3: 0 | AQ3: 0 | AR3: 0 | AS3: 0 | AT3: 0 | AU3: 0 | AV3: 0 | AW3: 0 | AX3: 0 | AY3: 0 | AZ3: 0 | BA3: 0 | BB3: 0 | BC3: 0 | BD3: 0 | BE3: 0 | BF3: 0 | BG3: 0 | BH3: 0
A4: East Midlands | B4: 24935 | C4: 3.815409757 | D4: 62.11750551 | E4: 29.88971325 | F4: 4.700220573 | G4: 2.879486665 | H4: 0.4130739924 | I4: 62.52656908 | J4: 30.8722679 | K4: 3.67756166 | L4: 2.225787046 | M4: 0.6978143172 | N4: 49.9699218 | O4: 36.94405454 | P4: 7.77220774 | Q4: 3.452977742 | R4: 1.860838179 | S4: 56.17004211 | T4: 33.86003609 | U4: 5.947463405 | V4: 2.670944456 | W4: 1.351513936 | X4: 48.42590736 | Y4: 37.8704632 | Z4: 7.643874073 | AA4: 3.252456387 | AB4: 2.807298977 | AC4: 37.40926409 | AD4: 44.09865651 | AE4: 11.15700822 | AF4: 4.251052737 | AG4: 3.084018448 | AH4: 47.3671546 | AI4: 37.65390014 | AJ4: 7.728093042 | AK4: 4.259073591 | AL4: 2.991778624 | AM4: 36.71947062 | AN4: 30.63966312 | AO4: 6.528975336 | AP4: 5.827150592 | AQ4: 20.28474032 | AR4: 50.08622418 | AS4: 31.01664327 | AT4: 7.427311009 | AU4: 6.77361139 | AV4: 4.696210146 | AW4: 47.20272709 | AX4: 31.52195709 | AY4: 9.171846802 | AZ4: 6.653298576 | BA4: 5.450170443 | BB4: 44.1267295 | BC4: 38.42791257 | BD4: 11.22919591 | BE4: 4.676158011 | BF4: 1.54000401 | BG4: 85.58251454 | BH4: 14.41748546
A5: East of England | B5: 41271 | C5: 4.854805221 | D5: 62.15744712 | E5: 30.0816554 | F5: 4.610985922 | G5: 2.689539871 | H5: 0.4603716896 | I5: 62.43851615 | J5: 31.03389789 | K5: 3.578784134 | L5: 2.112863754 | M5: 0.8359380679 | N5: 47.88834775 | O5: 38.15512103 | P5: 8.180078021 | Q5: 3.748394757 | R5: 2.028058443 | S5: 55.05318505 | T5: 34.99794044 | U5: 5.764338155 | V5: 2.733154031 | W5: 1.451382327 | X5: 46.69865038 | Y5: 38.90625379 | Z5: 7.976545274 | AA5: 3.673281481 | AB5: 2.745269075 | AC5: 36.07375639 | AD5: 45.02192823 | AE5: 11.58925153 | AF5: 4.5504107 | AG5: 2.764653146 | AH5: 46.97729641 | AI5: 38.2835405 | AJ5: 7.588863851 | AK5: 4.235419544 | AL5: 2.914879698 | AM5: 34.65629619 | AN5: 31.02178285 | AO5: 7.033994815 | AP5: 5.560805408 | AQ5: 21.72712074 | AR5: 49.60383805 | AS5: 31.20108551 | AT5: 8.020159434 | AU5: 7.159991277 | AV5: 4.014925735 | AW5: 45.57922028 | AX5: 32.49739527 | AY5: 9.486079814 | AZ5: 6.76019481 | BA5: 5.677109835 | BB5: 42.53592111 | BC5: 39.08313344 | BD5: 11.86062853 | BE5: 4.925977078 | BF5: 1.594339851 | BG5: 85.31172009 | BH5: 14.68827991
A6: Independent schools | B6: 3528 | C6: 3.995289002 | D6: 77.21088435 | E6: 17.23356009 | F6: 3.089569161 | G6: 1.757369615 | H6: 0.70861678 | I6: 78.7414966 | J6: 16.58163265 | K6: 2.210884354 | L6: 1.615646259 | M6: 0.8503401361 | N6: 66.86507937 | O6: 25.25510204 | P6: 4.024943311 | Q6: 2.465986395 | R6: 1.388888889 | S6: 75.3968254 | T6: 18.50907029 | U6: 3.486394558 | V6: 1.870748299 | W6: 0.7369614512 | X6: 67.43197279 | Y6: 24.37641723 | Z6: 4.336734694 | AA6: 2.267573696 | AB6: 1.587301587 | AC6: 56.03741497 | AD6: 29.138322 | AE6: 6.264172336 | AF6: 2.83446712 | AG6: 5.725623583 | AH6: 71.11678005 | AI6: 21.76870748 | AJ6: 3.458049887 | AK6: 2.12585034 | AL6: 1.530612245 | AM6: 57.85147392 | AN6: 22.87414966 | AO6: 3.458049887 | AP6: 3.231292517 | AQ6: 12.58503401 | AR6: 62.84013605 | AS6: 25.56689342 | AT6: 4.818594104 | AU6: 5.130385488 | AV6: 1.64399093 | AW6: 62.44331066 | AX6: 24.09297052 | AY6: 5.527210884 | AZ6: 4.988662132 | BA6: 2.947845805 | BB6: 61.08276644 | BC6: 29.02494331 | BD6: 6.150793651 | BE6: 2.579365079 | BF6: 1.162131519 | BG6: 91.49659864 | BH6: 8.503401361
A7: London | B7: 35223 | C7: 2.881648929 | D7: 66.74616018 | E7: 26.83757772 | F7: 3.395508617 | G7: 2.478494166 | H7: 0.5422593192 | I7: 66.14428073 | J7: 27.98455555 | K7: 2.898674162 | L7: 2.095221872 | M7: 0.8772676944 | N7: 53.21522869 | O7: 35.95094115 | P7: 6.183459671 | Q7: 2.978167675 | R7: 1.672202822 | S7: 58.72583255 | T7: 32.58666212 | U7: 4.664565767 | V7: 2.668710786 | W7: 1.354228771 | X7: 52.60767112 | Y7: 36.38247736 | Z7: 5.814382648 | AA7: 2.782272947 | AB7: 2.413195923 | AC7: 41.31675326 | AD7: 41.72557704 | AE7: 9.962240581 | AF7: 3.920733612 | AG7: 3.074695511 | AH7: 54.71708827 | AI7: 34.27873832 | AJ7: 5.300513869 | AK7: 3.230843483 | AL7: 2.472816058 | AM7: 39.87167476 | AN7: 30.30406269 | AO7: 5.269284274 | AP7: 4.383499418 | AQ7: 20.17147886 | AR7: 54.99247651 | AS7: 30.44601539 | AT7: 5.891037106 | AU7: 5.19546887 | AV7: 3.475002129 | AW7: 48.11912671 | AX7: 33.26519604 | AY7: 7.864179655 | AZ7: 5.388524544 | BA7: 5.362973057 | BB7: 47.81534793 | BC7: 37.19160776 | BD7: 9.607358828 | BE7: 3.937767936 | BF7: 1.447917554 | BG7: 88.58416376 | BH7: 11.41583624
A8: Maintained schools and academies | B8: 285424 | C8: 3.733251676 | D8: 63.9662397 | E8: 28.42402881 | F8: 4.361931723 | G8: 2.788483099 | H8: 0.4593166657 | I8: 64.33166097 | J8: 29.18360054 | K8: 3.476231852 | L8: 2.196031168 | M8: 0.8124754751 | N8: 50.9315965 | O8: 36.27935983 | P8: 7.573644823 | Q8: 3.481837547 | R8: 1.733561298 | S8: 57.689963 | T8: 32.71869219 | U8: 5.500588598 | V8: 2.745389316 | W8: 1.345366893 | X8: 49.95095017 | Y8: 36.96325467 | Z8: 7.261127305 | AA8: 3.250952968 | AB8: 2.573714894 | AC8: 38.77634677 | AD8: 43.17296373 | AE8: 10.81268569 | AF8: 4.354223891 | AG8: 2.88377992 | AH8: 49.56275576 | AI8: 36.50358765 | AJ8: 7.041804473 | AK8: 4.086551937 | AL8: 2.805300185 | AM8: 37.32867593 | AN8: 30.24377768 | AO8: 6.521876226 | AP8: 5.478866528 | AQ8: 20.42680363 | AR8: 51.94167274 | AS8: 30.22310668 | AT8: 7.221186726 | AU8: 6.635741914 | AV8: 3.978291945 | AW8: 48.14661696 | AX8: 31.32182297 | AY8: 8.938281294 | AZ8: 6.41221481 | BA8: 5.181063961 | BB8: 45.45798531 | BC8: 37.3854336 | BD8: 11.05548237 | BE8: 4.683908851 | BF8: 1.417189865 | BG8: 86.03516172 | BH8: 13.96483828
A9: North East, Yorkshire and Humber | B9: 36957 | C9: 3.20191921 | D9: 63.15718267 | E9: 28.0894012 | F9: 4.994994182 | G9: 3.290310361 | H9: 0.4681115891 | I9: 63.21129962 | J9: 29.43150147 | K9: 3.977595584 | L9: 2.581378359 | M9: 0.7982249641 | N9: 52.24991206 | O9: 34.79719674 | P9: 7.481667884 | Q9: 3.866655843 | R9: 1.60456747 | S9: 57.7968991 | T9: 31.690884 | U9: 6.015098628 | V9: 3.214546635 | W9: 1.282571637 | X9: 51.01875152 | Y9: 35.48718781 | Z9: 7.373433991 | AA9: 3.612306194 | AB9: 2.508320481 | AC9: 39.54325297 | AD9: 42.2031009 | AE9: 10.65021511 | AF9: 4.678410044 | AG9: 2.92502097 | AH9: 48.55913629 | AI9: 35.97153449 | AJ9: 7.592607625 | AK9: 4.729821143 | AL9: 3.146900452 | AM9: 37.84398084 | AN9: 29.11221149 | AO9: 6.889087318 | AP9: 6.228860568 | AQ9: 19.92585978 | AR9: 50.24487918 | AS9: 30.113375 | AT9: 7.776605244 | AU9: 7.340963823 | AV9: 4.524176746 | AW9: 48.85407365 | AX9: 29.57761723 | AY9: 9.32434992 | AZ9: 7.18131883 | BA9: 5.062640366 | BB9: 46.48104554 | BC9: 35.75777255 | BD9: 11.29961848 | BE9: 5.127580702 | BF9: 1.333982737 | BG9: 84.509024 | BH9: 15.490976
A10: North West | B10: 33935 | C10: 3.263919146 | D10: 64.62943863 | E10: 27.26094003 | F10: 4.52630028 | G10: 3.01753352 | H10: 0.565787535 | I10: 65.30425814 | J10: 27.81494033 | K10: 3.615735966 | L10: 2.460586415 | M10: 0.8044791513 | N10: 53.42861353 | O10: 33.83527332 | P10: 7.396493296 | Q10: 3.742448799 | R10: 1.597171062 | S10: 59.86149993 | T10: 30.44349492 | U10: 5.395609253 | V10: 2.982171799 | W10: 1.317224105 | X10: 52.45027258 | Y10: 34.23309268 | Z10: 7.408280536 | AA10: 3.494916753 | AB10: 2.413437454 | AC10: 41.67673493 | AD10: 40.30646825 | AE10: 10.39339915 | AF10: 4.944747311 | AG10: 2.678650361 | AH10: 52.31471932 | AI10: 33.51407102 | AJ10: 6.978046265 | AK10: 4.585236482 | AL10: 2.607926919 | AM10: 40.55400029 | AN10: 27.60866362 | AO10: 6.515397083 | AP10: 6.008545749 | AQ10: 19.31339325 | AR10: 53.48165611 | AS10: 28.1567703 | AT10: 7.266833653 | AU10: 7.202003831 | AV10: 3.892736113 | AW10: 50.62030352 | AX10: 28.27758951 | AY10: 8.905260056 | AZ10: 6.933844114 | BA10: 5.263002799 | BB10: 48.93767497 | BC10: 34.15942243 | BD10: 10.46117578 | BE10: 5.139236776 | BF10: 1.302490055 | BG10: 85.17754531 | BH10: 14.82245469
A11: Nursery | B11: 2343 | C11: 5.665852538 | D11: 85.61673069 | E11: 13.14553991 | F11: 0.6402048656 | G11: 0.2560819462 | H11: 0.341442595 | I11: 83.82415706 | J11: 14.63935126 | K11: 0.6402048656 | L11: 0.3841229193 | M11: 0.5121638924 | N11: 75.54417414 | O11: 21.16944089 | P11: 1.109688434 | Q11: 0.5548442168 | R11: 1.621852326 | S11: 80.92189501 | T11: 16.8160478 | U11: 0.8536064874 | V11: 0.7255655143 | W11: 0.6828851899 | X11: 75.62953478 | Y11: 20.91335894 | Z11: 1.024327785 | AA11: 0.6828851899 | AB11: 1.749893299 | AC11: 52.66752027 | AD11: 23.85830132 | AE11: 3.286384977 | AF11: 0.810926163 | AG11: 19.37686726 | AH11: 70.89201878 | AI11: 25.26675203 | AJ11: 0.9816474605 | AK11: 0.5975245412 | AL11: 2.262057192 | AM11: 54.84421682 | AN11: 18.65130175 | AO11: 0.7682458387 | AP11: 0.6402048656 | AQ11: 25.09603073 | AR11: 79.64148528 | AS11: 16.6453265 | AT11: 1.024327785 | AU11: 0.8536064874 | AV11: 1.835253948 | AW11: 75.75757576 | AX11: 18.65130175 | AY11: 1.707212975 | AZ11: 1.152368758 | BA11: 2.73154076 | BB11: 73.62355954 | BC11: 21.38284251 | BD11: 2.73154076 | BE11: 0.9816474605 | BF11: 1.280409731 | BG11: 97.82330346 | BH11: 2.176696543
A12: Primary | B12: 196616 | C12: 4.488599292 | D12: 68.28131993 | E12: 25.54878545 | F12: 3.552101558 | G12: 2.220063474 | H12: 0.3977295846 | I12: 68.44865118 | J12: 25.84835415 | K12: 3.085710217 | L12: 1.886418196 | M12: 0.7308662571 | N12: 53.50225821 | O12: 35.03377141 | P12: 6.877365016 | Q12: 3.135553566 | R12: 1.451051796 | S12: 60.77887863 | T12: 30.7508036 | U12: 4.946698132 | V12: 2.391463563 | W12: 1.132156081 | X12: 54.37604264 | Y12: 34.47125361 | Z12: 6.190238841 | AA12: 2.758168206 | AB12: 2.2042967 | AC12: 41.67005737 | AD12: 41.86231029 | AE12: 10.287057 | AF12: 3.892867315 | AG12: 2.28770802 | AH12: 52.76121984 | AI12: 35.19194776 | AJ12: 6.249237092 | AK12: 3.503784026 | AL12: 2.293811287 | AM12: 38.12761932 | AN12: 29.29415714 | AO12: 6.586442609 | AP12: 5.332221182 | AQ12: 20.65955975 | AR12: 53.83997233 | AS12: 29.21023721 | AT12: 6.962302152 | AU12: 6.524901331 | AV12: 3.462586972 | AW12: 49.56717663 | AX12: 31.05545836 | AY12: 8.521686943 | AZ12: 6.134292224 | BA12: 4.721385849 | BB12: 45.93674981 | BC12: 37.33877202 | BD12: 11.02707816 | BE12: 4.45029906 | BF12: 1.247100948 | BG12: 87.03411726 | BH12: 12.96588274
A13: Pupil Referral Unit | B13: 367 | C13: 2.577777778 | D13: 54.49591281 | E13: 28.88283379 | F13: 6.811989101 | G13: 7.356948229 | H13: 2.452316076 | I13: 57.22070845 | J13: 29.15531335 | K13: 5.994550409 | L13: 5.722070845 | M13: 1.907356948 | N13: 52.31607629 | O13: 28.88283379 | P13: 7.084468665 | Q13: 8.446866485 | R13: 3.269754768 | S13: 68.39237057 | T13: 20.4359673 | U13: 5.449591281 | V13: 4.632152589 | W13: 1.089918256 | X13: 56.13079019 | Y13: 28.33787466 | Z13: 6.811989101 | AA13: 5.994550409 | AB13: 2.72479564 | AC13: 34.0599455 | AD13: 29.42779292 | AE13: 11.71662125 | AF13: 10.89918256 | AG13: 13.89645777 | AH13: 47.13896458 | AI13: 33.78746594 | AJ13: 5.177111717 | AK13: 8.719346049 | AL13: 5.177111717 | AM13: 51.77111717 | AN13: 22.34332425 | AO13: 5.722070845 | AP13: 5.177111717 | AQ13: 14.98637602 | AR13: 64.03269755 | AS13: 19.34604905 | AT13: 4.359673025 | AU13: 9.264305177 | AV13: 2.997275204 | AW13: 65.66757493 | AX13: 19.34604905 | AY13: 5.994550409 | AZ13: 6.811989101 | BA13: 2.179836512 | BB13: 63.21525886 | BC13: 25.34059946 | BD13: 4.08719346 | BE13: 6.539509537 | BF13: 0.8174386921 | BG13: 82.83378747 | BH13: 17.16621253
A14: Secondary | B14: 80879 | C14: 2.602512189 | D14: 52.31024122 | E14: 36.38150818 | F14: 6.509724403 | G14: 4.238430248 | H14: 0.5600959458 | I14: 53.42177821 | J14: 38.15081789 | K14: 4.536406236 | L14: 2.974814229 | M14: 0.9161834345 | N14: 43.47111117 | O14: 40.16493775 | P14: 9.61559861 | Q14: 4.38309079 | R14: 2.365261687 | S14: 48.58615957 | T14: 38.76160684 | U14: 7.090839402 | V14: 3.663497323 | W14: 1.897896858 | X14: 37.55981157 | Y14: 44.19317746 | Z14: 10.22515115 | AA14: 4.537642651 | AB14: 3.484217164 | AC14: 31.46304974 | AD14: 47.7169599 | AE14: 12.30603741 | AF14: 5.438989107 | AG14: 3.074963835 | AH14: 40.47527788 | AI14: 40.48022354 | AJ14: 9.370788462 | AK14: 5.686272085 | AL14: 3.987438025 | AM14: 33.75536295 | AN14: 33.36218301 | AO14: 6.761953041 | AP14: 6.135090691 | AQ14: 19.9854103 | AR14: 45.4666848 | AS14: 33.8258386 | AT14: 8.212267709 | AU14: 7.1155677 | AV14: 5.379641192 | AW14: 42.60685716 | AX14: 33.0703891 | AY14: 10.37475735 | AZ14: 7.305975593 | BA14: 6.642020796 | BB14: 42.25818816 | BC14: 38.82219117 | BD14: 11.67299299 | BE14: 5.362331384 | BF14: 1.884296294 | BG14: 82.99805883 | BH14: 17.00194117
A15: South East | B15: 56105 | C15: 4.725040762 | D15: 65.09223777 | E15: 28.18108903 | F15: 3.992514036 | G15: 2.306389805 | H15: 0.427769361 | I15: 66.00659478 | J15: 28.30407272 | K15: 3.120933963 | L15: 1.78415471 | M15: 0.7842438285 | N15: 49.91890206 | O15: 36.98600838 | P15: 7.999287051 | Q15: 3.304518314 | R15: 1.791284199 | S15: 58.48320114 | T15: 32.68514393 | U15: 5.135014705 | V15: 2.340254879 | W15: 1.356385349 | X15: 49.3877551 | Y15: 37.70430443 | Z15: 7.286338116 | AA15: 2.971214687 | AB15: 2.650387666 | AC15: 37.72747527 | AD15: 44.06915605 | AE15: 11.23785759 | AF15: 4.065591302 | AG15: 2.899919793 | AH15: 49.27546564 | AI15: 37.52963194 | AJ15: 6.894216202 | AK15: 3.555832813 | AL15: 2.7448534 | AM15: 36.23384725 | AN15: 30.98654309 | AO15: 6.443276 | AP15: 4.878353088 | AQ15: 21.45798057 | AR15: 53.16816683 | AS15: 30.00802068 | AT15: 6.988681936 | AU15: 6.056501203 | AV15: 3.778629356 | AW15: 48.45200962 | AX15: 31.89020586 | AY15: 8.951073879 | AZ15: 5.760627395 | BA15: 4.946083237 | BB15: 44.06202656 | BC15: 38.77907495 | BD15: 11.42678906 | BE15: 4.416718653 | BF15: 1.315390785 | BG15: 86.87104536 | BH15: 13.12895464
A16: South West | B16: 31287 | C16: 4.495943348 | D16: 63.79646499 | E16: 28.13948285 | F16: 4.628120306 | G16: 3.017227603 | H16: 0.4187042542 | I16: 64.59551891 | J16: 28.56138332 | K16: 3.739572346 | L16: 2.192603957 | M16: 0.910921469 | N16: 50.57372071 | O16: 36.81720843 | P16: 7.667721418 | Q16: 3.276121073 | R16: 1.66522837 | S16: 57.92182056 | T16: 32.23703135 | U16: 5.925783872 | V16: 2.608111995 | W16: 1.307252213 | X16: 49.64362195 | Y16: 37.54914182 | Z16: 7.30335283 | AA16: 2.969284367 | AB16: 2.534599035 | AC16: 38.38015789 | AD16: 44.22284016 | AE16: 10.45482149 | AF16: 4.008054464 | AG16: 2.934125995 | AH16: 48.00076709 | AI16: 37.53635695 | AJ16: 7.48873334 | AK16: 4.234985777 | AL16: 2.739156838 | AM16: 36.20673123 | AN16: 31.34528718 | AO16: 6.894237223 | AP16: 5.826701186 | AQ16: 19.72704318 | AR16: 51.96087832 | AS16: 29.99328795 | AT16: 7.197877713 | AU16: 7.098795027 | AV16: 3.749160993 | AW16: 48.32038866 | AX16: 31.32610989 | AY16: 9.10921469 | AZ16: 6.405216224 | BA16: 4.83907054 | BB16: 44.54246173 | BC16: 38.29066385 | BD16: 11.23469812 | BE16: 4.410777639 | BF16: 1.521398664 | BG16: 86.16677853 | BH16: 13.83322147
A17: Special | B17: 5219 | C17: 5.115613452 | D17: 72.98333014 | E17: 20.25292202 | F17: 3.084882161 | G17: 2.548380916 | H17: 1.130484767 | I17: 70.05173405 | J17: 22.398927 | K17: 2.854953056 | L17: 2.356773328 | M17: 2.337612569 | N17: 58.55527879 | O17: 30.29315961 | P17: 5.096761832 | Q17: 3.525579613 | R17: 2.529220157 | S17: 71.22054033 | T17: 21.21095995 | U17: 3.812990994 | V17: 2.625023951 | W17: 1.130484767 | X17: 63.30714696 | Y17: 26.61429393 | Z17: 4.50277831 | AA17: 2.835792297 | AB17: 2.739988504 | AC17: 37.19103276 | AD17: 31.76853803 | AE17: 10.78750719 | AF17: 6.05479977 | AG17: 14.19812225 | AH17: 60.49051542 | AI17: 29.52672926 | AJ17: 3.659704924 | AK17: 2.49089864 | AL17: 3.832151753 | AM17: 53.72676758 | AN17: 23.45276873 | AO17: 3.008239126 | AP17: 3.027399885 | AQ17: 16.78482468 | AR17: 67.48419237 | AS17: 19.40984863 | AT17: 4.598582104 | AU17: 5.786549147 | AV17: 2.720827745 | AW17: 66.85188733 | AX17: 20.78942326 | AY17: 5.824870665 | AZ17: 5.365012454 | BA17: 1.168806285 | BB17: 63.11553938 | BC17: 24.9089864 | BD17: 6.782908603 | BE17: 4.50277831 | BF17: 0.6897873156 | BG17: 90.40045986 | BH17: 9.599540142
A18: West Midlands | B18: 25711 | C18: 3.052318506 | D18: 62.89136945 | E18: 29.40764653 | F18: 4.313328925 | G18: 3.033720975 | H18: 0.3539341138 | I18: 62.9886041 | J18: 30.34498853 | K18: 3.457664035 | L18: 2.438644938 | M18: 0.7700984015 | N18: 51.07541519 | O18: 36.23351873 | P18: 7.634864455 | Q18: 3.512115437 | R18: 1.544086189 | S18: 56.94449846 | T18: 33.27369608 | U18: 5.468476528 | V18: 3.006495274 | W18: 1.306833651 | X18: 49.7802497 | Y18: 37.15530318 | Z18: 7.261483412 | AA18: 3.325424915 | AB18: 2.477538797 | AC18: 38.8005134 | AD18: 43.23441329 | AE18: 10.69192175 | AF18: 4.538913306 | AG18: 2.734238264 | AH18: 49.1190541 | AI18: 36.79359029 | AJ18: 6.954221928 | AK18: 4.247209366 | AL18: 2.885924313 | AM18: 37.48201159 | AN18: 30.67169694 | AO18: 6.608066586 | AP18: 5.620162576 | AQ18: 19.61806231 | AR18: 51.02096379 | AS18: 31.21232157 | AT18: 7.238147097 | AU18: 6.573062113 | AV18: 3.955505426 | AW18: 48.06114115 | AX18: 31.85795963 | AY18: 8.556648905 | AZ18: 6.658628603 | BA18: 4.865621718 | BB18: 46.30702812 | BC18: 36.36964723 | BD18: 10.98362569 | BE18: 5.001750224 | BF18: 1.337948738 | BG18: 85.48481195 | BH18: 14.51518805
